fUSD/lending_fUSD_20250421
["ID","MTS","AMOUNT","RATE_DAILY","PERIOD"]
[358475693,1745196644463,-208.99,0.00027816,2]
[358475694,1745196644473,-166.66,0.00028954,2]
[358475695,1745196644482,-2082.86,0.00028966,2]
[358475696,1745196644492,-750.0,0.00029,2]
[358475698,1745196644501,-201.70501788,0.00029025,2]
[358475699,1745196644513,-7.28498212,0.00029025,2]
[358475700,1745196644523,-3385.83922457,0.00029222,2]
[358475701,1745196644533,-63.75437251,0.00029275,2]
[358475702,1745196644544,-7609.11609622,0.00029275,2]
[358475704,1745196644554,-1613.0,0.00029898,2]
[358475706,1745196644564,-1000.0,0.00029988,2]
[358475707,1745196644575,-402.53,0.0003,2]
[358475709,1745196644584,-275.0,0.0003,2]
[358475710,1745196644593,-208.99,0.00030235,2]
[358475711,1745196644603,-800.0,0.00031,2]
[358475712,1745196644613,-2082.86,0.0003123,2]
[358475714,1745196644622,-208.99,0.00031444,2]
[358475716,1745196644631,-2000.0,0.00031691,4]
[358475718,1745196644640,-12007.55025409,0.00032,5]
[358475720,1745196644649,-155.0,0.00032,2]
[358475721,1745196644659,-799.56,0.00032232,30]
[358475722,1745196644668,-172.55,0.00032282,120]
[358475724,1745196644678,-152.0,0.00032287,3]
[358475726,1745196644687,-208.99,0.00032654,2]
[358475728,1745196644697,-1000.0,0.00032714,2]
[358475730,1745196644706,-2258.0,0.00032748,3]
[358475732,1745196644715,-156.72,0.00032811,120]
[358475734,1745196644725,-850.0,0.00033,2]
[358475736,1745196644734,-152.0,0.00033139,4]
[358475738,1745196644744,-2082.86,0.00033493,2]
[358475740,1745196644753,-3385.83922457,0.00033891,2]
[358475741,1745196644762,-206.014791,0.00033891,7]
[358475742,1745196644772,-206.014791,0.00033891,7]
[358475743,1745196644782,-7672.87046873,0.00033935,2]
[358475744,1745196644791,-152.0,0.0003399,5]
[358475745,1745196644800,-155.73,0.00034247,2]
[358475746,1745196644809,-152.0,0.00034842,6]
[358475747,1745196644819,-900.0,0.00035,2]
[358475748,1745196644828,-422.63,0.00035068,2]
[358475749,1745196644838,-402.53,0.000353,14]
[358475750,1745196644848,-152.0,0.00035693,7]
[358475751,1745196644861,-2082.86,0.00035757,2]
[358475752,1745196644871,-3162.0,0.00035871,3]
[358475753,1745196644880,-195.24901214,0.00035893,8]
[358475754,1745196644890,-543.6623822,0.00035918,2]
[358475755,1745196644903,-1616.72700003,0.00035918,2]
[358475756,1745196644919,-112049.11071757,0.00035918,2]
[358475757,1745196644928,-151.0,0.00035918,7]
[358475758,1745196644938,-151.0,0.00035918,7]
[358475759,1745196644948,-151.0,0.00035918,7]
[358475760,1745196644957,-151.0,0.00035918,7]
[358475761,1745196644967,-276.56946,0.00035918,7]
[358475762,1745196644976,-151.0,0.00035918,7]
[358475763,1745196644986,-151.0,0.00035918,2]
[358475764,1745196644995,-151.0,0.00035918,7]
[358475765,1745196645004,-151.0,0.00035918,7]
[358475766,1745196645013,-151.0,0.00035918,7]
[358475767,1745196645023,-74260.5729156,0.00035943,2]
[358475768,1745196645032,-151.0,0.00035943,7]
[358475769,1745196645041,-150.0,0.00036138,30]
[358475770,1745196645051,-489.34213067,0.00036138,30]
[358475771,1745196645061,-152.0,0.00036545,8]
[358475772,1745196645072,-950.0,0.00037,2]
[358475773,1745196645081,-152.0,0.00037396,9]
[358475774,1745196645091,-2082.86,0.00038021,2]
[358475775,1745196645100,-152.0,0.00038248,10]
[358475776,1745196645109,-157.3408559,0.00038356,2]
[358475777,1745196645119,-206.014791,0.00038558,14]
[358475778,1745196645128,-206.014791,0.00038558,14]
[358475779,1745196645137,-3385.83922457,0.00038559,2]
[358475780,1745196645147,-7672.87046873,0.00038596,2]
[358475781,1745196645156,-1000.0,0.00039,2]
[358475782,1745196645166,-152.0,0.00039099,11]
[358475783,1745196645175,-4427.0,0.0003929,5]
[358475784,1745196645185,-151.0,0.0003929,14]
[358475785,1745196645194,-500.0,0.00039726,15]
[358475786,1745196645203,-500.0,0.00039726,15]
[358475787,1745196645212,-500.0,0.00039726,15]
[358475788,1745196645222,-500.0,0.00039726,15]
[358475789,1745196645231,-500.0,0.00039726,15]
[358475790,1745196645240,-500.0,0.00039726,15]
[358475791,1745196645249,-500.0,0.00039726,15]
[358475792,1745196645258,-500.0,0.00039726,15]
[358475793,1745196645267,-500.0,0.00039726,15]
[358475794,1745196645276,-500.0,0.00039726,15]
[358475795,1745196645286,-361.96950373,0.00039726,15]
[358475796,1745196645294,-500.0,0.00039726,15]
[358475797,1745196645303,-500.0,0.00039726,15]
[358475798,1745196645312,-500.0,0.00039726,15]
[358475799,1745196645322,-500.0,0.00039726,15]
[358475800,1745196645331,-500.0,0.00039726,15]
[358475801,1745196645341,-500.0,0.00039726,15]
[358475802,1745196645351,-200.0,0.00039726,15]
[358475803,1745196645360,-152.0,0.00039951,12]
[358475804,1745196645369,-1000.0,0.000402,7]
[358475805,1745196645378,-1000.0,0.000402,7]
[358475806,1745196645387,-1000.0,0.000402,7]
[358475807,1745196645397,-1443.0,0.000402,7]
[358475808,1745196645407,-1000.0,0.000402,7]
[358475809,1745196645416,-1000.0,0.000402,7]
[358475810,1745196645425,-1582.0,0.000402,7]
[358475811,1745196645434,-2082.86,0.00040285,2]
[358475812,1745196645443,-402.53,0.000403,14]
[358475813,1745196645452,-795.0,0.00040569,2]
[358475814,1745196645461,-1282.0,0.00040569,2]
[358475815,1745196645470,-908.0,0.00040569,2]
[358475816,1745196645479,-1553.92,0.00040569,2]
[358475817,1745196645488,-579.721,0.00040569,2]
[358475818,1745196645498,-4158.0,0.00040569,2]
[358475819,1745196645507,-577.0,0.00040569,2]
[358475820,1745196645516,-155.558,0.00040569,2]
[358475821,1745196645525,-2140.0,0.00040569,2]
[358475822,1745196645535,-3975.0,0.00040569,2]
[358475823,1745196645544,-871.168,0.00040569,2]
[358475824,1745196645553,-1000.0,0.000406,7]
[358475825,1745196645562,-1000.0,0.000406,7]
[358475826,1745196645573,-1000.0,0.000406,7]
[358475827,1745196645582,-152.0,0.00040802,13]
[358475828,1745196645591,-155.50713833,0.00040802,5]
[358475829,1745196645600,-1942.7934118,0.00040849,4]
[358475830,1745196645609,-1050.0,0.00041,2]
[358475831,1745196645618,-155.73,0.00041096,2]
[358475832,1745196645627,-53413.0,0.000411,2]
[358475833,1745196645637,-151.0,0.00041372,14]
[358475834,1745196645646,-151.0,0.00041372,14]
[358475835,1745196645654,-151.0,0.00041372,14]
[358475836,1745196645663,-1254.0,0.000414,7]
[358475837,1745196645673,-11057.5307277,0.00041971,2]
[358475838,1745196645682,-4665.1781288,0.00041971,2]
[358475839,1745196645691,-47187.76991672,0.00042,2]
[358475840,1745196645700,-5562.0,0.00042,3]
[358475841,1745196645710,-2165.94013157,0.00042314,30]
[358475842,1745196645719,-2104.814,0.00042479,64]
[358475843,1745196645729,-151.0,0.00042549,14]
[358475844,1745196645739,-151.0,0.00042549,2]
[358475845,1745196645749,-151.0,0.00042549,14]
[358475846,1745196645759,-2082.86,0.00042549,2]
[358475847,1745196645772,-182.879686,0.000429,14]
[358475848,1745196645782,-151.0,0.000429,14]
[358475849,1745196645792,-352.26234656,0.00042999,30]
[358475850,1745196645802,-151.0,0.00042999,14]
[358475851,1745196645813,-151.0,0.00042999,14]
[358475852,1745196645824,-48524.43230446,0.00043,2]
[358475861,1745196646561,-516.55805135,0.00043,2]
[358475862,1745196646705,-744.05117671,0.00043,2]
[358475863,1745196646719,-14569.76769705,0.00043,2]
[358475865,1745196646920,-187.295059,0.00035943,7]
[358475866,1745196646931,-27152.1051495,0.00043,2]
[358475867,1745196646942,-17572.56646395,0.00043,2]
[358475868,1745196646957,-289.8,0.00043,2]
[358475869,1745196646967,-82334.94453801,0.00043,2]
[358475870,1745196646978,-16221.0379984,0.00043,2]
[358475871,1745196646993,-646.50974253,0.00043,2]
[358475872,1745196704406,-283.42726108,0.00019125,2]
[358475876,1745196967790,-9.29273892,0.00019125,2]
[358475877,1745196967813,-250.0,0.00019505,2]
[358475878,1745196967836,-150.0,0.00019505,2]
[358475879,1745196967860,-300.0,0.00019885,2]
[358475880,1745196967884,-1000.0,0.00019886,2]
[358475882,1745196994973,450.0,0.00017,2]
[358475883,1745196996238,500.0,0.00019,2]
[358475886,1745197045026,200.0,0.00018905,2]
[358475906,1745197415962,356.66,0.00047967,30]
[358475908,1745197556624,3000.0,0.00047967,30]
[358475909,1745197625131,-550.0,0.00021,2]
[358475910,1745197635198,-190.29168262,0.00021005,2]
[358475922,1745197814644,-59.70831738,0.00021005,2]
[358475923,1745197814669,-150.0,0.00021009,2]
[358475929,1745197831392,-250.14269961,0.00023,2]
[358475933,1745197831838,-349.85730039,0.00023,2]
[358475935,1745197831848,-150.0,0.000231,2]
[358475937,1745197831858,-150.0,0.000231,2]
[358475939,1745197831867,-150.0,0.000231,2]
[358475941,1745197831877,-250.0,0.000231,2]
[358475943,1745197831886,-250.0,0.00023105,2]
[358475945,1745197831895,-650.0,0.00025,2]
[358475947,1745197831904,-700.0,0.00027,2]
[358475949,1745197831913,-419.67425316,0.00028404,2]
[358475950,1745197831923,-750.0,0.00029,2]
[358475951,1745197831932,-150.99,0.00030356,2]
[358475952,1745197831942,-500.0,0.00030356,2]
[358475953,1745197831951,-400.0,0.00030897,2]
[358475954,1745197831960,-200.0,0.00030897,30]
[358475955,1745197831969,-400.0,0.00030898,2]
[358475956,1745197831978,-193.0,0.00030899,2]
[358475957,1745197831987,-3973.898,0.000309,2]
[358475958,1745197831996,-800.0,0.00031,2]
[358475959,1745197832006,-850.0,0.00033,2]
[358475960,1745197832015,-259.0,0.00033269,2]
[358475961,1745197832024,-560.0,0.0003341,3]
[358475962,1745197832033,-385.0,0.00033987,30]
[358475963,1745197832042,-900.0,0.00035,2]
[358475964,1745197832051,-783.0,0.00036126,3]
[358475965,1745197832060,-150.0,0.00036138,30]
[358475966,1745197832070,-254.42427767,0.00036138,30]
[358475967,1745197832079,-500.0,0.00036575,2]
[358475968,1745197832088,-1065.18211282,0.000375,2]
[358475969,1745197832097,-500.0,0.00037546,2]
[358475970,1745197832106,-167.3,0.00037582,30]
[358475971,1745197832115,-165.73,0.00037673,2]
[358475972,1745197832124,-20689.93853134,0.00037701,2]
[358475973,1745197832147,-3210.06146866,0.00037701,2]
[358475974,1745197832157,-982.9,0.00037746,2]
[358475975,1745197832166,-1028.87,0.00037779,2]
[358475976,1745197832176,-4555.65398512,0.00037942,2]
[358475977,1745197832185,-2628.49,0.00037952,2]
[358475978,1745197832195,-150.0,0.00037952,7]
[358475979,1745197832204,-150.0,0.00037952,2]
[358475980,1745197832213,-799.89,0.00037952,2]
[358475981,1745197832222,-281.75,0.00038303,2]
[358475982,1745197832231,-152.0,0.0003899,2]
[358475983,1745197832241,-2140.0,0.0003899,2]
[358475984,1745197832250,-3975.0,0.0003899,2]
[358475985,1745197832259,-868.0,0.0003899,2]
[358475986,1745197832268,-166.66,0.00039061,2]
[358475987,1745197832278,-1097.0,0.00039063,5]
[358475988,1745197832288,-937.28,0.00039278,2]
[358475989,1745197832297,-1262.888,0.00039726,55]
[358475990,1745197832307,-1000.0,0.0004,2]
[358475991,1745197832317,-166.66,0.0004035,2]
[358475992,1745197832328,-250.0,0.00040715,2]
[358475993,1745197832338,-1865.4442459,0.00040849,4]
[358475994,1745197832347,-150.34,0.0004099,2]
[358475995,1745197832356,-180.0,0.00041,14]
[358475996,1745197832365,-162.441,0.00041059,2]
[358475997,1745197832375,-200.0,0.00041196,2]
[358475998,1745197832384,-1000.0,0.00041196,2]
[358475999,1745197832394,-937.28,0.00041542,2]
[358476000,1745197832403,-166.66,0.00041639,2]
[358476001,1745197832413,-152.0,0.0004199,2]
[358476002,1745197832423,-2140.0,0.0004199,2]
[358476003,1745197832433,-3975.0,0.0004199,2]
[358476004,1745197832442,-1536.0,0.00042239,5]
[358476005,1745197832452,-165.73,0.00042383,2]
[358476006,1745197832461,-609.04751531,0.0004277,2]
[358476007,1745197832471,-795.0,0.00042869,2]
[358476008,1745197832481,-678.649,0.00042869,2]
[358476009,1745197832491,-1398.889,0.00042869,2]
[358476010,1745197832500,-908.0,0.00042869,2]
[358476011,1745197832510,-456.98696911,0.00042869,2]
[358476012,1745197832527,-984.01303089,0.00042869,2]
[358476013,1745197832538,-577.0,0.00042869,2]
[358476014,1745197832547,-296.22202152,0.00042869,2]
[358476015,1745197832567,-868.29743,0.00042869,2]
[358476020,1745197837499,-1492.3553967,0.00040849,4]
[358476021,1745197837509,-2993.48054848,0.00042869,2]
[358476022,1745197837518,-2337.85263417,0.000429,2]
[358476023,1745197837557,-4322.5,0.000429,2]
[358476024,1745197837569,-785.77447178,0.000429,2]
[358476025,1745197837996,-388.87289405,0.000429,2]
[358476026,1745197838005,-347.5722,0.000429,2]
[358476027,1745197838015,-2042.79141779,0.000429,15]
[358476028,1745197838024,-316.2435,0.000429,2]
[358476029,1745197838034,-6694.5715,0.000429,2]
[358476030,1745197838043,-2500.0,0.000429,2]
[358476031,1745197838052,-1000.0,0.00042906,2]
[358476032,1745197838062,-1000.0,0.00042906,2]
[358476033,1745197838071,-166.66,0.00042929,2]
[358476034,1745197838084,-195.3,0.00042949,2]
[358476035,1745197838093,-6669.00781663,0.00042973,15]
[358476036,1745197838103,-4715.01975412,0.00043,2]
[358476037,1745197838115,-857.86554678,0.00043,2]
[358476038,1745197838127,-868.03,0.00043,2]
[358476070,1745197839691,-28442.12361948,0.00043,2]
[358476071,1745197839703,-70883.59245758,0.00043,2]
[358476072,1745197839914,-1493.27209043,0.00043,2]
[358476073,1745197839971,-239.71163519,0.00043,2]
[358476074,1745197839981,-15491.26128388,0.00043,2]
[358476075,1745197839990,-168.0,0.00043,90]
[358476076,1745197840000,-500.0,0.00043011,31]
[358476077,1745197840009,-500.0,0.00043011,31]
[358476078,1745197840019,-293.37865261,0.00043011,31]
[358476079,1745197840028,-500.0,0.00043011,31]
[358476080,1745197840038,-500.0,0.00043011,31]
[358476081,1745197840047,-500.0,0.00043011,31]
[358476082,1745197840057,-500.0,0.00043011,31]
[358476083,1745197840066,-500.0,0.00043011,31]
[358476084,1745197840078,-500.0,0.00043011,31]
[358476085,1745197840088,-500.0,0.00043011,31]
[358476086,1745197840099,-500.0,0.00043011,31]
[358476087,1745197840109,-5267.5493898,0.00043012,2]
[358476088,1745197840118,-434.66010639,0.00043012,2]
[358476089,1745197840137,-43405.26650032,0.00043012,2]
[358476119,1745197842607,-2366.53966463,0.00043012,2]
[358476120,1745197842619,-60732.28822001,0.00043012,2]
[358476136,1745197845766,-655.28,0.00041189,2]
[358476137,1745197845777,-529.156,0.00041189,2]
[358476138,1745197845786,-150.0,0.00043011,31]
[358476139,1745197845796,-2028.964,0.00043012,2]
[358476140,1745197845807,-8214.2547814,0.00043012,2]
[358476141,1745197845987,-1656.90474624,0.00043012,2]
[358476150,1745197941778,-168.0,0.00043014,90]
[358476151,1745197941836,-168.0,0.00044877,90]
[358476152,1745197941898,-974.0,0.00045,30]
[358476153,1745197941950,-150.0,0.00045755,120]
[358476154,1745197941977,-150.0,0.00046027,120]
[358476155,1745197942002,-150.0,0.00046411,120]
[358476156,1745197942026,-170.0,0.00047121,90]
[358476157,1745197942051,-167.3,0.00047363,120]
[358476158,1745197942077,-500.0,0.00047479,120]
[358476159,1745197942104,-1782.11,0.00047978,60]
[358476160,1745197942127,-206.75911988,0.00047984,30]
[358476161,1745197942152,-210.0,0.00047984,30]
[358476162,1745197942176,-198.93,0.00048,30]
[358476163,1745197942200,-645.0,0.00048,30]
[358476164,1745197942225,-200.0,0.00048,73]
[358476165,1745197942255,-241.55,0.000481,45]
[358476166,1745197942284,-241.55,0.000481,45]
[358476167,1745197942312,-241.55,0.000481,45]
[358476168,1745197942341,-241.55,0.000481,45]
[358476169,1745197942368,-241.55,0.000481,45]
[358476170,1745197942397,-241.55,0.000481,45]
[358476171,1745197942424,-241.55,0.000481,45]
[358476172,1745197942451,-241.55,0.000481,45]
[358476173,1745197942478,-241.55,0.000481,45]
[358476174,1745197942507,-241.55,0.000481,45]
[358476175,1745197942534,-241.55,0.000481,45]
[358476176,1745197942563,-241.55,0.000481,45]
[358476177,1745197942593,-150.0,0.00048366,120]
[358476178,1745197942620,-1154.68789898,0.00048567,60]
[358476179,1745197942821,-150.0,0.00048607,120]
[358476180,1745197942848,-200.0,0.00049,77]
[358476181,1745197942875,-150.0,0.00049035,120]
[358476182,1745197942900,-5000.0,0.0004911,120]
[358476183,1745197942929,-150.0,0.00049233,120]
[358476184,1745197942955,-150.0,0.00049274,120]
[358476185,1745197942981,-150.0,0.00049418,120]
[358476186,1745197943008,-178.40402724,0.0004989,38]
[358476187,1745197943034,-500.0,0.0004995,30]
[358476188,1745197943060,-996.1636,0.0005,120]
[358476189,1745197943085,-533.17,0.0005,120]
[358476190,1745197943111,-301.0,0.0005,120]
[358476191,1745197943137,-151.0,0.0005,120]
[358476192,1745197943165,-200.0,0.0005,81]
[358476193,1745197943189,-500.0,0.0005015,60]
[358476194,1745197943215,-365.08,0.00050192,30]
[358476195,1745197943242,-150.0,0.00050213,120]
[358476196,1745197943267,-1070.0,0.00050432,30]
[358476197,1745197943291,-522.45803562,0.00050452,60]
[358476198,1745197943315,-208.0,0.0005077,30]
[358476199,1745197943340,-211.0,0.0005077,30]
[358476200,1745197943364,-200.0,0.00051,85]
[358476201,1745197943389,-1000.0,0.00051495,120]
[358476202,1745197943414,-10438.19452846,0.00052,120]
[358476203,1745197943440,-301.0,0.00052,120]
[358476204,1745197943466,-200.0,0.00052,89]
[358476205,1745197943491,-208.0,0.0005217,30]
[358476206,1745197943517,-211.0,0.0005217,30]
[358476207,1745197943543,-200.0,0.00053,92]
[358476208,1745197943571,-612.22252458,0.00053032,60]
[358476209,1745197943597,-1070.0,0.00053086,30]
[358476210,1745197943621,-500.0,0.00053424,30]
[358476211,1745197943647,-208.0,0.0005356,30]
[358476212,1745197943674,-211.0,0.0005356,30]
[358476213,1745197943700,-164.811833,0.000537,120]
[358476214,1745197943727,-164.811833,0.000537,120]
[358476215,1745197943757,-241.55,0.000537,54]
[358476216,1745197943788,-241.55,0.000537,54]
[358476217,1745197943817,-241.55,0.000537,54]
[358476218,1745197943846,-241.55,0.000537,54]
[358476219,1745197943874,-241.55,0.000537,54]
[358476220,1745197943904,-241.55,0.000537,54]
[358476221,1745197943931,-241.55,0.000537,54]
[358476222,1745197943958,-241.55,0.000537,54]
[358476223,1745197943985,-241.55,0.000537,54]
[358476224,1745197944013,-241.55,0.000537,54]
[358476225,1745197944041,-241.55,0.000537,54]
[358476226,1745197944070,-241.55,0.000537,54]
[358476227,1745197944099,-241.55,0.000537,54]
[358476228,1745197944126,-241.55,0.000537,54]
[358476229,1745197944154,-241.55,0.000537,54]
[358476230,1745197944181,-241.55,0.000537,54]
[358476231,1745197944218,-241.55,0.000537,54]
[358476232,1745197944253,-241.55,0.000537,54]
[358476233,1745197944292,-241.55,0.000537,54]
[358476234,1745197944331,-241.55,0.000537,54]
[358476235,1745197944367,-241.55,0.000537,54]
[358476236,1745197944401,-241.55,0.000537,54]
[358476237,1745197944440,-241.55,0.000537,54]
[358476238,1745197944477,-241.55,0.000537,54]
[358476239,1745197944512,-168.0,0.00053852,120]
[358476240,1745197944544,-184.73999378,0.00053972,32]
[358476241,1745197944582,-301.0,0.00054,120]
[358476242,1745197944616,-200.0,0.00054,96]
[358476243,1745197944650,-150.0,0.00054077,120]
[358476244,1745197944684,-150.0,0.0005412,120]
[358476245,1745197944715,-150.0,0.00054153,120]
[358476246,1745197944749,-471.77671225,0.00054247,120]
[358476247,1745197944777,-150.0,0.00054348,120]
[358476248,1745197944814,-150.0,0.00054392,120]
[358476249,1745197944846,-150.0,0.00054549,120]
[358476250,1745197944878,-177.930306,0.00054746,120]
[358476251,1745197944907,-177.930306,0.00054746,120]
[358476252,1745197944939,-151.0,0.00054746,120]
[358476253,1745197944973,-151.0,0.00054746,120]
[358476254,1745197945004,-151.0,0.00054756,120]
[358476255,1745197945036,-151.0,0.00054756,120]
[358476256,1745197945066,-157.57242,0.00054756,120]
[358476257,1745197945096,-151.0,0.00054756,120]
[358476258,1745197945126,-151.0,0.00054756,120]
[358476259,1745197945155,-159.981798,0.00054756,120]
[358476260,1745197945186,-159.981798,0.00054756,120]
[358476261,1745197945215,-151.0,0.00054756,120]
[358476262,1745197945245,-151.0,0.00054756,120]
[358476263,1745197945274,-151.0,0.00054756,120]
[358476264,1745197945305,-151.0,0.00054756,120]
[358476265,1745197945334,-151.0,0.00054756,120]
[358476266,1745197945364,-281.09826,0.00054756,120]
[358476267,1745197945395,-151.0,0.00054756,120]
[358476268,1745197945425,-151.0,0.00054784,120]
[358476269,1745197945454,-590.16310055,0.00054794,120]
[358476270,1745197945484,-500.0,0.00054794,120]
[358476271,1745197945513,-500.0,0.00054794,120]
[358476272,1745197945545,-462.3494684,0.00054794,120]
[358476273,1745197945577,-500.0,0.00054794,120]
[358476274,1745197945607,-526.67582884,0.00054794,120]
[358476275,1745197945638,-537.71954097,0.00054794,120]
[358476276,1745197945671,-552.6549191,0.00054794,120]
[358476277,1745197945703,-603.91284461,0.00054794,120]
[358476278,1745197945735,-549.08266617,0.00054794,120]
[358476279,1745197945767,-500.0,0.00054794,120]
[358476280,1745197945796,-500.0,0.00054794,120]
[358476281,1745197945822,-425.14475,0.00054794,120]
[358476282,1745197945847,-500.0,0.00054794,120]
[358476283,1745197946073,-500.0,0.00054794,120]
[358476284,1745197946119,-545.80777953,0.00054794,120]
[358476285,1745197946143,-500.0,0.00054794,120]
[358476286,1745197946168,-500.0,0.00054794,120]
[358476287,1745197946192,-500.0,0.00054794,120]
[358476288,1745197946216,-500.0,0.00054794,120]
[358476289,1745197946241,-500.0,0.00054794,120]
[358476290,1745197946265,-535.02277486,0.00054794,120]
[358476291,1745197946290,-500.0,0.00054794,120]
[358476292,1745197946314,-522.71459521,0.00054794,120]
[358476293,1745197946340,-500.0,0.00054794,120]
[358476294,1745197946364,-500.0,0.00054794,120]
[358476295,1745197946388,-500.0,0.00054794,120]
[358476296,1745197946413,-542.4763551,0.00054794,120]
[358476297,1745197946437,-500.0,0.00054794,120]
[358476298,1745197946462,-500.0,0.00054794,120]
[358476299,1745197946487,-500.0,0.00054794,120]
[358476300,1745197946512,-515.02237138,0.00054794,120]
[358476301,1745197946537,-500.0,0.00054794,120]
[358476302,1745197946563,-500.0,0.00054794,120]
[358476303,1745197946592,-300.0,0.00054794,120]
[358476304,1745197946616,-524.56835043,0.00054794,120]
[358476305,1745197946644,-500.0,0.00054794,120]
[358476306,1745197946675,-500.0,0.00054794,120]
[358476307,1745197946700,-500.0,0.00054794,120]
[358476308,1745197946726,-500.0,0.00054794,120]
[358476309,1745197946753,-500.0,0.00054794,120]
[358476310,1745197946780,-500.0,0.00054794,120]
[358476311,1745197946808,-500.0,0.00054794,120]
[358476312,1745197946834,-552.05539893,0.00054794,120]
[358476313,1745197946859,-295.01608991,0.00054794,120]
[358476314,1745197946886,-500.0,0.00054794,120]
[358476315,1745197946915,-500.0,0.00054794,120]
[358476316,1745197946943,-544.75347657,0.00054794,120]
[358476317,1745197946971,-502.83966125,0.00054794,120]
[358476318,1745197946999,-527.63142496,0.00054794,120]
[358476319,1745197947028,-500.0,0.00054794,120]
[358476320,1745197947056,-528.10883962,0.00054794,120]
[358476321,1745197947085,-500.0,0.00054794,120]
[358476322,1745197947113,-500.0,0.00054794,120]
[358476323,1745197947142,-550.61732941,0.00054794,120]
[358476324,1745197947174,-500.0,0.00054794,120]
[358476325,1745197947200,-500.0,0.00054794,120]
[358476326,1745197947225,-500.0,0.00054794,120]
[358476327,1745197947250,-500.0,0.00054794,120]
[358476328,1745197947275,-511.16109964,0.00054794,120]
[358476329,1745197947301,-541.36073956,0.00054794,120]
[358476330,1745197947326,-500.0,0.00054794,120]
[358476331,1745197947352,-500.0,0.00054794,120]
[358476332,1745197947378,-500.0,0.00054794,120]
[358476333,1745197947405,-547.92630433,0.00054794,120]
[358476334,1745197947433,-500.0,0.00054794,120]
[358476335,1745197947460,-522.11310577,0.00054794,120]
[358476336,1745197947486,-500.0,0.00054794,120]
[358476337,1745197947512,-500.0,0.00054794,120]
[358476338,1745197947537,-500.0,0.00054794,120]
[358476339,1745197947563,-557.47675522,0.00054794,120]
[358476340,1745197947590,-531.7597837,0.00054794,120]
[358476341,1745197947617,-2101.561468,0.00054794,120]
[358476342,1745197947644,-500.0,0.00054794,120]
[358476343,1745197947673,-545.10746327,0.00054794,120]
[358476344,1745197947700,-500.0,0.00054794,120]
[358476345,1745197947726,-316.036698,0.00054794,120]
[358476346,1745197947753,-500.0,0.00054794,120]
[358476347,1745197947779,-530.65014755,0.00054794,120]
[358476348,1745197947804,-500.0,0.00054794,120]
[358476349,1745197947829,-500.0,0.00054794,120]
[358476350,1745197947854,-505.47664339,0.00054794,120]
[358476351,1745197947879,-557.19452856,0.00054794,120]
[358476352,1745197947905,-500.0,0.00054794,120]
[358476353,1745197947934,-625.31524,0.00054794,120]
[358476354,1745197947959,-500.0,0.00054794,120]
[358476355,1745197947984,-500.0,0.00054794,120]
[358476356,1745197948009,-500.0,0.00054794,120]
[358476357,1745197948035,-293.75112702,0.00054794,120]
[358476358,1745197948061,-554.25,0.00054794,120]